fUSD/lending_fUSD_20251118
["ID","MTS","AMOUNT","RATE_DAILY","PERIOD"]
[394340164,1763472638058,-460.25,0.00018487,2]
[394340166,1763472638067,-700.0,0.000185,2]
[394340168,1763472638076,-1680.0,0.00018658,2]
[394340170,1763472638086,-166.66,0.0001872,2]
[394340172,1763472638100,-460.25,0.00018761,2]
[394340174,1763472638109,-300.0,0.00019,2]
[394340176,1763472638118,-156.09189065,0.00019,2]
[394340177,1763472638127,-587.22,0.00019033,2]
[394340180,1763472638138,-460.27,0.00019035,2]
[394340182,1763472638147,-166.66,0.00019083,2]
[394340184,1763472638156,-801.0,0.000195,3]
[394340186,1763472638166,-1200.0,0.00019573,2]
[394340188,1763472638175,-1631.38,0.00019945,2]
[394340190,1763472638185,-1275.83998097,0.0002,2]
[394340192,1763472638194,-610.0,0.00020438,2]
[394340194,1763472638203,-671.0,0.0002048,2]
[394340195,1763472638213,-152.13041836,0.000205,2]
[394340197,1763472638223,-350.0,0.00021,2]
[394340200,1763472638232,-150.0,0.00021138,2]
[394340201,1763472638241,-907.0,0.00021208,2]
[394340204,1763472638251,-1604.0,0.00021208,2]
[394340206,1763472638260,-3432.0,0.00021208,2]
[394340208,1763472638269,-587.22,0.00021412,2]
[394340210,1763472638279,-346.85198452,0.00021582,2]
[394340211,1763472638288,-10722.96420597,0.00021818,2]
[394340213,1763472638298,-2036.42,0.00021904,2]
[394340216,1763472638308,-5000.0,0.00021918,2]
[394340218,1763472638317,-12237.51,0.00022161,2]
[394340220,1763472638327,-500.0,0.0002251,2]
[394340222,1763472638335,-500.0,0.0002251,2]
[394340223,1763472638345,-500.0,0.0002251,2]
[394340226,1763472638354,-409.97796895,0.0002251,2]
[394340227,1763472638363,-7215.59,0.00022562,2]
[394340230,1763472638373,-150.99,0.00022562,2]
[394340232,1763472638382,-3192.26,0.00022562,2]
[394340234,1763472638392,-950.26,0.00022562,2]
[394340236,1763472638401,-479.30025826,0.00023281,2]
[394340238,1763472638411,-587.22,0.00023791,2]
[394340240,1763472638420,-10722.96420595,0.00024009,2]
[394340242,1763472638429,-907.0,0.00024208,2]
[394340244,1763472638438,-531.0,0.00024208,2]
[394340246,1763472638447,-153.0,0.00024658,2]
[394340248,1763472638457,-153.0,0.00024658,2]
[394340250,1763472638466,-153.0,0.00024658,2]
[394340251,1763472638475,-153.0,0.00024658,2]
[394340254,1763472638489,-38995.7308002,0.000248,3]
[394340256,1763472638498,-346.85198452,0.00024907,2]
[394340258,1763472638507,-2000.0,0.000262,2]
[394340260,1763472638517,-500.0,0.00027397,2]
[394340262,1763472638526,-3566.5028381,0.00027808,2]
[394340264,1763472638535,-1631.38,0.00027923,2]
[394340266,1763472638545,-19497.8654001,0.00027969,3]
[394340268,1763472638554,-467.6725,0.00027979,2]
[394340270,1763472638564,-2500.0,0.00027979,2]
[394340272,1763472638574,-19497.8654001,0.00028078,3]
[394340274,1763472638583,-500.0,0.00028078,2]
[394340276,1763472638592,-2721.0,0.00028078,5]
[394340278,1763472638601,-175.31455108,0.00028079,2]
[394340280,1763472638611,-350961.577201,0.00028079,3]
[394340282,1763472638620,-312533.914498,0.00028079,3]
[394340284,1763472638629,-150.75,0.00028079,2]
[394340286,1763472638638,-500.0,0.00028088,2]
[394340288,1763472638647,-512.0,0.00028088,2]
[394340290,1763472638656,-760000.0,0.00028089,2]
[394340292,1763472638665,-346.85198452,0.00028233,2]
[394340294,1763472638674,-151.0,0.00029274,2]
[394340296,1763472638683,-185.75589403,0.00029274,2]
[394340298,1763472638692,-2000.0,0.000299,2]
[394340300,1763472638701,-600.1,0.00030136,2]
[394340302,1763472638710,-236.42707678,0.00031332,2]
[394340304,1763472638720,-191.59,0.00031507,120]
[394340306,1763472638730,-346.85198452,0.00031558,2]
[394340308,1763472638740,-18384.3479116,0.00032488,3]
[394340310,1763472638749,-36768.6958233,0.00033412,3]
[394340311,1763472638758,-62001.41885838,0.00033422,2]
[394340312,1763472638767,-10964.86,0.00033467,2]
[394340313,1763472638777,-1836.0,0.000336,2]
[394340314,1763472638786,-2214.319,0.00034141,38]
[394340315,1763472638795,-18384.3479116,0.00034249,3]
[394340316,1763472638805,-1852.42,0.00034259,2]
[394340317,1763472638814,-1500.0,0.00034259,120]
[394340318,1763472638823,-346.85198452,0.00034884,2]
[394340319,1763472638832,-500.0,0.00036977,30]
[394340320,1763472638842,-500.0,0.00037021,30]
[394340321,1763472638851,-500.0,0.00037205,30]
[394340322,1763472638860,-500.0,0.00037208,30]
[394340323,1763472638869,-18384.3479116,0.00037242,4]
[394340324,1763472638878,-12535.7449737,0.00037252,2]
[394340325,1763472638888,-7855.978202,0.00037252,2]
[394340326,1763472638897,-1836.60571705,0.000373,2]
[394340327,1763472638906,-150.0,0.00037455,7]
[394340328,1763472638915,-213.37435148,0.00037455,7]
[394340329,1763472638924,-150.00000001,0.00037455,7]
[394340330,1763472638934,-150.0,0.00037455,7]
[394340331,1763472638944,-150.0,0.00037455,7]
[394340332,1763472638953,-150.0,0.00037455,7]
[394340333,1763472638962,-150.0,0.00037455,7]
[394340334,1763472638972,-150.00000001,0.00037455,7]
[394340335,1763472638981,-150.0,0.00037455,7]
[394340336,1763472638990,-150.0,0.00037455,7]
[394340337,1763472638999,-168.66866561,0.00037455,7]
[394340338,1763472639009,-150.0,0.00037455,7]
[394340339,1763472639018,-150.0,0.00037455,7]
[394340340,1763472639028,-150.0,0.00037455,7]
[394340341,1763472639037,-500.0,0.00037569,30]
[394340342,1763472639047,-152.0,0.00037865,3]
[394340343,1763472639056,-500.0,0.00037943,30]
[394340344,1763472639066,-500.0,0.00037992,30]
[394340345,1763472639075,-346.85198452,0.00038209,2]
[394340346,1763472639088,-500.0,0.00038242,30]
[394340347,1763472639098,-500.0,0.00038666,30]
[394340348,1763472639109,-500.0,0.00038683,30]
[394340349,1763472639119,-1815.0,0.00039,7]
[394340350,1763472639129,-519.74264212,0.00039197,30]
[394340351,1763472639139,-500.0,0.00039438,30]
[394340352,1763472639148,-18384.3479116,0.0003948,4]
[394340353,1763472639157,-18384.3479116,0.0003949,4]
[394340354,1763472639168,-67447.73385441,0.000395,2]
[394340355,1763472639178,-167.58851225,0.00039562,30]
[394340356,1763472639187,-500.0,0.00039677,30]
[394340357,1763472639197,-167.58851225,0.00039699,30]
[394340358,1763472639206,-478.46,0.00039753,2]
[394340359,1763472639216,-167.58851225,0.00039863,30]
[394340360,1763472639226,-18384.3479116,0.0003998,4]
[394340361,1763472639236,-500.0,0.00039983,30]
[394340362,1763472639246,-18384.3479116,0.0003999,4]
[394340363,1763472639255,-73537.3916465,0.0003999,4]
[394340364,1763472639264,-50000.0,0.0004,40]
[394340365,1763472639274,-503.8314516,0.0004,120]
[394340366,1763472639284,-200000.0,0.0004,2]
[394340367,1763472639294,-12499.99,0.0004,120]
[394340368,1763472639303,-12499.99,0.0004,120]
[394340369,1763472639313,-636.45717416,0.00040006,30]
[394340370,1763472639323,-167.58851225,0.00040027,30]
[394340371,1763472639333,-500.0,0.00040184,30]
[394340372,1763472639342,-167.58851225,0.00040192,30]
[394340373,1763472639352,-167.58851225,0.00040356,30]
[394340374,1763472639361,-3177.75922202,0.00040396,2]
[394340375,1763472639371,-500.0,0.0004047,30]
[394340376,1763472639381,-167.58851225,0.00040521,30]
[394340377,1763472639390,-167.58851225,0.00040658,30]
[394340378,1763472639400,-500.0,0.00040675,7]
[394340379,1763472639410,-511.47,0.00040675,7]
[394340380,1763472639419,-528.12,0.00040675,7]
[394340381,1763472639429,-500.0,0.00040677,30]
[394340382,1763472639438,-768.2795,0.000407,20]
[394340383,1763472639447,-500.0,0.0004071,30]
[394340384,1763472639458,-500.0,0.0004071,30]
[394340385,1763472639468,-300.0,0.00040821,102]
[394340387,1763472639479,-167.58851225,0.00040822,30]
[394340388,1763472639489,-1048.71147007,0.00040827,50]
[394340389,1763472639499,-1062.48053208,0.00040827,50]
[394340390,1763472639509,-1080.26423716,0.00040827,50]
[394340391,1763472639519,-1116.65105922,0.00040827,50]
[394340392,1763472639529,-1059.169182,0.00040827,50]
[394340393,1763472639538,-1103.96403903,0.00040827,50]
[394340394,1763472639547,-1102.61504076,0.00040827,50]
[394340395,1763472639557,-1138.1461235,0.00040827,50]
[394340396,1763472639566,-697.19,0.00040827,30]
[394340397,1763472639576,-175.95,0.00040978,2]
[394340398,1763472639585,-167.58851225,0.00040986,30]
[394340399,1763472639595,-150.0,0.00041,2]
[394340400,1763472639605,-150.0,0.00041,2]
[394340401,1763472639614,-192.57698377,0.00041,2]
[394340402,1763472639623,-5626.0,0.00041022,14]
[394340403,1763472639632,-500.0,0.00041057,30]
[394340404,1763472639642,-428.31,0.00041096,120]
[394340405,1763472639651,-154.65,0.00041096,2]
[394340406,1763472639660,-386.19263862,0.000411,2]
[394340407,1763472639669,-167.58851225,0.00041151,30]
[394340408,1763472639679,-168.88791,0.0004123,8]
[394340409,1763472639689,-506.62413117,0.00041285,90]
[394340410,1763472639698,-628.69535391,0.000413,2]
[394340411,1763472639708,-167.58851225,0.00041315,30]
[394340412,1763472639717,-1000.0,0.00041414,14]
[394340413,1763472639727,-151.0,0.00041425,120]
[394340414,1763472639735,-77378.35222468,0.00041425,30]
[394340415,1763472639757,-215.90309751,0.00038441,2]
[394340416,1763472639766,-1165.58411845,0.00041425,30]
[394340417,1763472639839,-705.0,0.00021208,2]
[394340418,1763472639848,-705.0,0.00024208,2]
[394340419,1763472639857,-4450.0317327,0.00026199,2]
[394340420,1763472639868,-741.67040957,0.00026199,2]
[394340422,1763472639879,-5531.26206368,0.00026199,2]
[394340424,1763472639887,-253.0,0.00027208,2]
[394340426,1763472639896,-215.90309751,0.00038727,2]
[394340428,1763472639905,-215.90309751,0.00039076,2]
[394340430,1763472639914,-215.90309751,0.0003928,2]
[394340431,1763472639923,-215.90309751,0.00039502,2]
[394340433,1763472639933,-215.90309751,0.00039754,2]
[394340435,1763472639941,-215.90309751,0.00040023,2]
[394340437,1763472639951,-68257.92622745,0.00041425,30]
[394340439,1763472639961,-917.49,0.00041425,30]
[394340441,1763472639973,-14287.24589999,0.00041425,30]
[394340442,1763472639988,-215.90309751,0.00040537,2]
[394340443,1763472639997,-5505.28338269,0.00041425,30]
[394340451,1763472642759,-151.0,0.00017166,2]
[394340452,1763472642769,-215.90309751,0.0004073,2]
[394340453,1763472642778,-215.90309751,0.00041036,2]
[394340454,1763472642787,-215.90309751,0.00041159,2]
[394340455,1763472642797,-67247.2604923,0.00041425,30]
[394340456,1763472642818,-98846.94810028,0.00041425,30]
[394340457,1763472643101,-494.88,0.00017999,2]
[394340458,1763472643111,-764663.17053599,0.00041425,30]
[394340467,1763472645675,-10722.96420595,0.0002839,2]
[394340468,1763472645684,-319550.26352542,0.00041425,30]
[394340469,1763472645697,-2137.12846753,0.00041425,30]
[394340470,1763472645709,-1452.01192522,0.00041425,30]
[394340471,1763472645732,-76214.94732739,0.00041425,30]
[394340472,1763472645744,-553.523,0.00041425,30]
[394340473,1763472645792,-949.5,0.00041425,30]
[394340474,1763472645809,-537.43491328,0.00041425,30]
[394340475,1763472645825,-409.55999997,0.00041425,30]
[394340476,1763472645863,-4298.04190909,0.00041425,30]
[394340477,1763472645979,-1075.67458821,0.00041425,30]
[394340478,1763472645990,-9525.0,0.00041425,30]
[394340501,1763473193980,2333.324,0.00016108,2]
[394340502,1763473308933,1944.4366667,0.00016108,2]
[394340506,1763473424098,1620.3638889,0.00016108,2]
[394340512,1763473539250,1350.30324075,0.00016108,2]
[394340514,1763473561388,695.97,0.00013699,2]
[394340516,1763473654406,1125.25270065,0.00016108,2]
[394340517,1763473769557,937.71058385,0.00016108,2]
[394340528,1763473831713,-651.0,0.00016206,2]
[394340529,1763473831723,-250.0,0.00016207,2]
[394340530,1763473831733,-402.47621283,0.00016207,2]
[394340531,1763473831769,-2552.16443229,0.00016207,2]
[394340532,1763473831938,-805.848,0.00016207,2]
[394340554,1763473837714,-509.61914462,0.00016207,2]
[394340555,1763473837775,-540.51117255,0.00016207,2]
[394340556,1763473837787,-4440.53103771,0.00016207,2]
[394340557,1763473837796,-454.0,0.00016208,2]
[394340558,1763473837806,-250.0,0.0001637,2]
[394340559,1763473837815,-937.71058383,0.00016426,2]
[394340560,1763473837825,-937.71058383,0.00016745,2]
[394340561,1763473837834,-3008.12,0.00017019,2]
[394340562,1763473837843,-937.71058383,0.00017063,2]
[394340563,1763473837853,-937.71058383,0.00017382,2]
[394340564,1763473837863,-151.0,0.00017439,2]
[394340565,1763473837871,-151.0,0.00017453,2]
[394340566,1763473837881,-151.0,0.00017462,2]
[394340567,1763473837890,-151.0,0.00017466,2]
[394340568,1763473837900,-419.74,0.00017576,2]
[394340569,1763473837909,-6433.77852357,0.000177,2]
[394340570,1763473837918,-937.71058383,0.000177,2]
[394340571,1763473837927,-173.42599226,0.00017727,2]
[394340572,1763473837936,-504.65985304,0.00017773,2]
[394340573,1763473837945,-500.0,0.00017773,2]
[394340574,1763473837955,-157.32755515,0.00017799,2]
[394340575,1763473837964,-500.0,0.00017799,2]
[394340576,1763473837973,-250.6160495,0.00017799,2]
[394340577,1763473837982,-500.0,0.00017799,2]
[394340578,1763473837991,-227.46288222,0.00017799,2]
[394340579,1763473838000,-500.0,0.00017799,2]
[394340580,1763473838010,-500.0,0.00017799,2]
[394340581,1763473838019,-500.0,0.00017799,2]
[394340582,1763473838028,-500.0,0.00017799,2]
[394340583,1763473838037,-500.0,0.00017799,2]
[394340584,1763473838046,-452.69918231,0.00017799,2]
[394340585,1763473838055,-500.0,0.00017799,2]
[394340586,1763473838065,-499.99999999,0.00017799,2]
[394340587,1763473838074,-875.94209552,0.000178,2]
[394340588,1763473838083,-1000.0,0.000178,2]
[394340589,1763473838093,-1000.0,0.000178,2]
[394340591,1763473838102,-760000.0,0.000178,2]
[394340592,1763473838111,-2500.0,0.000178,2]
[394340594,1763473838120,-300.0,0.00017827,2]
[394340596,1763473838129,-300.0,0.00017827,2]
[394340598,1763473838138,-300.0,0.00017827,2]
[394340600,1763473838148,-300.0,0.00017827,2]
[394340602,1763473838158,-300.0,0.00017827,2]
[394340604,1763473838167,-250.0,0.00017827,2]
[394340607,1763473838177,-419.74,0.0001785,2]
[394340609,1763473838186,-1771.456,0.00017873,2]
[394340612,1763473838195,-523.46270611,0.00017899,2]
[394340616,1763473838204,-500.0,0.00017899,2]
[394340618,1763473838213,-500.0,0.00017899,2]
[394340621,1763473838223,-500.0,0.00017899,2]
[394340624,1763473838232,-500.0,0.00017899,2]
[394340627,1763473838241,-500.0,0.00017899,2]
[394340629,1763473838249,-500.0,0.00017899,2]
[394340632,1763473838258,-473.27692908,0.00017899,2]
[394340633,1763473838267,-500.0,0.00017899,2]
[394340635,1763473838276,-500.0,0.00017899,2]
[394340637,1763473838287,-500.0,0.00017899,2]
[394340640,1763473838297,-500.0,0.00017899,2]
[394340642,1763473838306,-500.0,0.00017899,2]
[394340644,1763473838315,-500.0,0.00017899,2]
[394340645,1763473838324,-500.0,0.00017899,2]
[394340648,1763473838333,-500.0,0.00017899,2]
[394340649,1763473838342,-273.94295942,0.00017899,2]
[394340652,1763473838351,-500.0,0.00017899,2]
[394340654,1763473838361,-500.0,0.00017899,2]
[394340656,1763473838370,-547.57431765,0.00017899,2]
[394340658,1763473838379,-160.25562608,0.00017899,2]
[394340660,1763473838389,-419.74,0.00018124,2]
[394340661,1763473838398,-419.74,0.00018398,2]
[394340664,1763473838407,-419.76,0.00018672,2]
[394340665,1763473838416,-206.43,0.00019002,2]
[394340667,1763473838425,-1074.79,0.00019573,2]
[394340670,1763473838435,-2751.0,0.00020122,2]
[394340671,1763473838443,-300.0,0.00020125,2]
[394340673,1763473838453,-695.97,0.00020187,2]
[394340675,1763473838462,-2396.11586966,0.00020223,2]
[394340677,1763473838475,-6433.77852357,0.0002035,2]
[394340679,1763473838485,-2000.0,0.00020366,2]
[394340681,1763473838494,-300.0,0.00021495,2]
[394340683,1763473838503,-1000.0,0.00021713,2]
[394340685,1763473838512,-1458.76,0.00022819,2]
[394340688,1763473838521,-6433.77852357,0.00023,2]
[394340689,1763473838530,-479.30025826,0.00023308,2]
[394340692,1763473838545,-150.99,0.00023368,2]
[394340693,1763473838554,-725.151,0.00023638,2]
[394340695,1763473838563,-150.0,0.00023638,2]
[394340697,1763473838572,-295.499,0.00023638,2]
[394340700,1763473838583,-210.0,0.00023638,2]
[394340701,1763473838593,-169.08,0.00023638,2]
[394340703,1763473838603,-288.139,0.00023638,2]
[394340706,1763473838613,-1000.0,0.00024427,2]
[394340708,1763473838622,-153.0,0.00024658,2]
[394340710,1763473838632,-153.0,0.00024658,2]
[394340712,1763473838641,-1000.0,0.00024658,2]
[394340714,1763473838650,-875.94209552,0.000247,3]
[394340716,1763473838659,-500.0,0.00024799,2]
[394340717,1763473838668,-129338.741954,0.000248,3]
[394340720,1763473838677,-165459.131206,0.000249,3]
[394340721,1763473838687,-6433.77852357,0.00025651,2]
[394340724,1763473838698,-173.42599226,0.00025669,2]
[394340726,1763473838707,-200.0,0.000261,2]
[394340727,1763473838716,-150.0,0.00026638,2]
[394340730,1763473838726,-150.0,0.00026638,2]
[394340732,1763473838735,-150.0,0.00026638,2]
[394340733,1763473838745,-695.97,0.00026676,2]
[394340735,1763473838754,-335.2,0.00026708,30]
[394340737,1763473838764,-200.0,0.00027078,2]
[394340749,1763473838940,-1000.0,0.00027142,2]
[394340750,1763473838951,-10810.78,0.00027333,2]
[394340751,1763473838961,-500.0,0.00027534,2]
[394340752,1763473838971,-8858.55,0.00027946,2]
[394340753,1763473838980,-200.0,0.00028057,2]
[394340754,1763473838990,-6433.77852357,0.00028301,2]
[394340755,1763473838999,-3008.12,0.000288,2]
[394340756,1763473839008,-200.0,0.00029036,2]
[394340757,1763473839018,-3589.27,0.00029337,2]
[394340758,1763473839027,-160.25562608,0.00029725,15]
[394340759,1763473839037,-1000.0,0.00029856,2]
[394340760,1763473839046,-200.0,0.00030015,2]
[394340761,1763473839055,-6433.77852357,0.00030951,2]
[394340762,1763473839064,-335.2,0.00031755,30]
[394340763,1763473839074,-1000.0,0.0003257,2]
[394340764,1763473839083,-1000.0,0.000326,2]
[394340765,1763473839092,-695.97,0.00033165,2]
[394340766,1763473839101,-2174.0,0.00033548,5]
[394340767,1763473839110,-6433.77852357,0.00033601,2]
[394340768,1763473839119,-173.42599226,0.0003361,2]
[394340769,1763473839128,-150.75,0.0003499,2]
[394340770,1763473839137,-1136.33,0.00035,21]
[394340771,1763473839146,-1000.0,0.00035,14]
[394340772,1763473839156,-1000.0,0.00035,21]
[394340773,1763473839165,-1000.0,0.00035,21]
[394340774,1763473839174,-1000.0,0.000353,21]
[394340775,1763473839184,-475.7,0.00035876,120]
[394340776,1763473839194,-6433.77852357,0.00036252,2]
[394340777,1763473839204,-1000.0,0.000363,2]
[394340778,1763473839214,-500.0,0.00036718,30]
[394340779,1763473839223,-335.2,0.00036802,30]
[394340780,1763473839232,-500.0,0.00036844,30]
[394340781,1763473839242,-427.6823,0.00036888,7]
[394340782,1763473839252,-500.0,0.0003698,30]
[394340783,1763473839261,-629.56119453,0.00036986,15]
[394340784,1763473839271,-209.0,0.00037,2]
[394340785,1763473839280,-830.12816329,0.00037,2]
[394340786,1763473839290,-500.0,0.00037047,30]
[394340787,1763473839300,-500.0,0.00037109,30]
[394340788,1763473839309,-500.0,0.0003711,30]
[394340789,1763473839318,-500.0,0.00037142,30]
[394340790,1763473839327,-500.0,0.00037143,30]
[394340791,1763473839336,-252.48590672,0.000372,120]
[394340792,1763473839346,-252.4859067,0.000372,120]
[394340793,1763473839355,-252.4859067,0.000372,120]
[394340794,1763473839364,-252.4859067,0.000372,120]
[394340795,1763473839373,-213.37435148,0.00037479,7]
[394340796,1763473839383,-150.00000001,0.00037479,7]
[394340797,1763473839392,-150.0,0.00037479,7]
[394340798,1763473839401,-150.0,0.00037479,7]
[394340799,1763473839410,-150.0,0.00037479,7]
[394340800,1763473839419,-150.0,0.00037479,7]
[394340801,1763473839429,-168.66866561,0.00037479,7]
[394340802,1763473839438,-150.0,0.00037479,7]
[394340803,1763473839447,-150.00000001,0.00037479,7]
[394340804,1763473839456,-150.0,0.00037479,7]
[394340805,1763473839465,-150.0,0.00037479,7]
[394340806,1763473839474,-150.0,0.00037479,7]
[394340807,1763473839483,-150.0,0.00037479,7]
[394340808,1763473839493,-150.0,0.00037479,7]
[394340809,1763473839502,-1000.0,0.00037491,30]
[394340810,1763473839511,-1000.0,0.00037491,30]
[394340811,1763473839521,-500.0,0.00037657,30]
[394340812,1763473839531,-500.0,0.00037722,30]
[394340813,1763473839545,-500.0,0.00037986,30]
[394340814,1763473839554,-206.0,0.00038,30]
[394340815,1763473839564,-826.0,0.00038,30]
[394340816,1763473839573,-500.0,0.00038012,30]
[394340817,1763473839584,-500.0,0.00038073,30]
[394340818,1763473839594,-500.0,0.00038192,30]
[394340819,1763473839603,-500.0,0.00038288,30]
[394340820,1763473839613,-500.0,0.00038351,30]
[394340821,1763473839622,-150.76618811,0.00038356,5]
[394340822,1763473839631,-500.0,0.00038365,30]
[394340823,1763473839640,-500.0,0.00038523,30]
[394340824,1763473839650,-500.0,0.00038558,30]
[394340825,1763473839659,-500.0,0.0003856,30]
[394340826,1763473839668,-500.0,0.00038695,30]
[394340827,1763473839678,-500.0,0.00038865,30]
[394340828,1763473839687,-3849.141,0.00038888,30]
[394340829,1763473839696,-6433.77852357,0.00038902,2]
[394340830,1763473839705,-156.0,0.0003891,120]
[394340831,1763473839714,-155.97,0.0003891,120]
[394340832,1763473839724,-500.0,0.00038957,30]
[394340833,1763473839732,-500.0,0.00038987,30]
[394340834,1763473839742,-206.0,0.00039,30]
[394340835,1763473839751,-826.0,0.00039,30]
[394340836,1763473839760,-156.01894879,0.0003901,120]
[394340838,1763473839770,-155.97,0.0003901,120]
[394340839,1763473839779,-500.0,0.00039025,30]
[394340841,1763473839789,-500.0,0.00039082,30]
[394340842,1763473839799,-155.97,0.0003911,120]
[394340843,1763473839808,-155.97,0.0003921,120]
[394340844,1763473839818,-500.0,0.00039211,30]
[394340845,1763473839828,-87126.0479,0.0003922,30]
[394340846,1763473839837,-155.97,0.0003931,120]
[394340847,1763473839847,-500.0,0.00039405,30]
[394340848,1763473839857,-155.97,0.0003941,120]
[394340849,1763473839866,-155.97,0.0003951,120]
[394340850,1763473839876,-167.58851226,0.00039562,30]
[394340851,1763473839885,-335.17702451,0.00039562,30]
[394340852,1763473839895,-155.97,0.0003961,120]
[394340853,1763473839905,-695.97,0.00039654,2]
[394340854,1763473839914,-167.58851226,0.00039699,30]
[394340855,1763473839924,-155.97,0.0003971,120]
[394340856,1763473839933,-335.17702451,0.00039726,30]
[394340857,1763473839943,-155.97,0.0003981,120]
[394340858,1763473839957,-167.58851226,0.00039863,30]
[394340859,1763473839967,-500.0,0.00039873,30]
[394340860,1763473839976,-335.17702451,0.0003989,30]
[394340861,1763473839986,-155.41510279,0.000399,120]
[394340862,1763473839995,-155.41510279,0.000399,120]
[394340863,1763473840004,-155.41510279,0.000399,120]
[394340864,1763473840013,-155.41510279,0.000399,120]
[394340865,1763473840022,-156.08,0.0003991,120]
[394340866,1763473840031,-500.0,0.0003995,30]
[394340867,1763473840040,-500.0,0.00039994,30]
[394340868,1763473840049,-206.0,0.0004,30]
[394340869,1763473840058,-350.0,0.0004,120]
[394340870,1763473840067,-12499.99,0.0004,120]
[394340871,1763473840076,-12499.98,0.0004,120]
[394340872,1763473840086,-12500.0,0.0004,120]
[394340873,1763473840095,-826.0,0.0004,30]
[394340874,1763473840105,-605.02460679,0.0004,120]
[394340875,1763473840115,-217.8178705,0.0004,7]
[394340876,1763473840124,-167.58851226,0.00040027,30]
[394340877,1763473840133,-335.17702451,0.00040055,30]
[394340878,1763473840146,-500.0,0.00040076,30]
[394340879,1763473840156,-519.74264212,0.00040114,30]
[394340880,1763473840165,-150.0,0.00040156,2]
[394340881,1763473840175,-325.95,0.00040156,2]
[394340882,1763473840184,-150.0,0.00040156,2]
[394340883,1763473840193,-150.0,0.00040156,2]
[394340884,1763473840205,-167.58851226,0.00040192,30]
[394340885,1763473840215,-335.17702451,0.00040192,30]
[394340886,1763473840225,-500.0,0.00040218,30]
[394340887,1763473840234,-12500.0,0.0004025,120]
[394340888,1763473840244,-500.0,0.00040278,30]
[394340889,1763473840254,-360.0,0.000403,10]
[394340890,1763473840264,-1815.0,0.000403,7]
[394340891,1763473840274,-440.0,0.00040305,10]
[394340892,1763473840284,-167.58851226,0.00040356,30]
[394340893,1763473840294,-335.17702451,0.00040356,30]
[394340894,1763473840303,-3177.75922202,0.00040396,2]
[394340895,1763473840312,-360.0,0.00040401,10]
[394340896,1763473840321,-440.0,0.00040405,10]
[394340897,1763473840330,-704.33,0.0004044,30]
[394340898,1763473840339,-693.58,0.0004044,30]
[394340899,1763473840348,-1055.0,0.0004044,30]
[394340900,1763473840357,-167.58851226,0.00040493,30]
[394340901,1763473840366,-12500.0,0.000405,120]
[394340903,1763473840376,-360.0,0.00040501,10]
[394340904,1763473840385,-440.0,0.00040506,10]
[394340905,1763473840395,-335.17702451,0.00040521,30]
[394340906,1763473840404,-3008.12,0.00040581,2]
[394340907,1763473840413,-360.0,0.00040602,10]
[394340908,1763473840423,-500.0,0.00040603,30]
[394340909,1763473840431,-440.0,0.00040607,10]
[394340910,1763473840441,-210.79030433,0.0004065,12]
[394340911,1763473840450,-210.7903043,0.0004065,12]
[394340912,1763473840460,-210.7903043,0.0004065,12]
[394340913,1763473840469,-167.58851226,0.00040658,30]
[394340914,1763473840479,-500.0,0.00040675,7]
[394340915,1763473840488,-511.47,0.00040675,7]
[394340916,1763473840497,-528.12,0.00040675,7]